[Event "Early-Titled-Tuesday-Blitz-February-13-2024"]
[Site "Chess.com"]
[Date "2024.02.13"]
[Round "2"]
[White "itsdsyr"]
[Black "tandaleo"]
[Result "0-1"]
[WhiteElo "2298"]
[BlackElo "2535"]
[TimeControl "180+1"]
[EndTime "8:21:14 PST"]
[Termination "tandaleo won by resignation"]

1. e4 {[%clk 0:03:00.2]} 1... e5 {[%clk 0:03:00]} 2. Nf3 {[%clk 0:03:00.1]} 2...
Nc6 {[%clk 0:03:00.4]} 3. Bb5 {[%clk 0:02:59.6]} 3... a6 {[%clk 0:03:00.5]} 4.
Ba4 {[%clk 0:02:59.5]} 4... d6 {[%clk 0:03:00.1]} 5. O-O {[%clk 0:02:54.1]} 5...
Bd7 {[%clk 0:03:00.1]} 6. c3 {[%clk 0:02:53.1]} 6... Nge7 {[%clk 0:03:00.1]} 7.
d4 {[%clk 0:02:50.8]} 7... Ng6 {[%clk 0:03:00.2]} 8. h3 {[%clk 0:02:48.3]} 8...
Be7 {[%clk 0:02:58.9]} 9. Be3 {[%clk 0:02:45]} 9... h6 {[%clk 0:02:59.3]} 10.
Nbd2 {[%clk 0:02:44.6]} 10... Bg5 {[%clk 0:02:59.5]} 11. Qe2 {[%clk 0:02:28.8]}
11... Qf6 {[%clk 0:02:50.3]} 12. Rad1 {[%clk 0:02:26.1]} 12... b5 {[%clk
0:02:33.8]} 13. Bb3 {[%clk 0:02:12.1]} 13... O-O {[%clk 0:02:26.7]} 14. Rfe1
{[%clk 0:01:43.8]} 14... Bxe3 {[%clk 0:01:50.3]} 15. fxe3 {[%clk 0:01:43.2]}
15... Na5 {[%clk 0:01:34.8]} 16. Bc2 {[%clk 0:01:40.6]} 16... Qe7 {[%clk
0:01:32.3]} 17. Nf1 {[%clk 0:01:36.7]} 17... c5 {[%clk 0:01:26]} 18. Ng3 {[%clk
0:01:32.9]} 18... Nc4 {[%clk 0:01:09.2]} 19. b3 {[%clk 0:01:31.3]} 19... Nb6
{[%clk 0:01:09.2]} 20. Nf5 {[%clk 0:01:21.9]} 20... Bxf5 {[%clk 0:01:09.5]} 21.
exf5 {[%clk 0:01:22.8]} 21... Nh4 {[%clk 0:01:10.1]} 22. Nh2 {[%clk 0:01:03.6]}
22... e4 {[%clk 0:00:48.7]} 23. Rf1 {[%clk 0:00:50.3]} 23... g6 {[%clk
0:00:38.6]} 24. f6 {[%clk 0:00:45.1]} 24... Qe6 {[%clk 0:00:38]} 25. Qf2 {[%clk
0:00:35.1]} 25... Nf5 {[%clk 0:00:37.6]} 26. Qf4 {[%clk 0:00:31.7]} 26... Rfe8
{[%clk 0:00:34.6]} 27. Ng4 {[%clk 0:00:20.4]} 27... Kh7 {[%clk 0:00:29.8]} 28.
dxc5 {[%clk 0:00:19]} 28... dxc5 {[%clk 0:00:28.9]} 29. Nf2 {[%clk 0:00:16.8]}
29... Nd5 {[%clk 0:00:27.8]} 30. Rxd5 {[%clk 0:00:16.5]} 30... Qxd5 {[%clk
0:00:27.1]} 31. Bxe4 {[%clk 0:00:16.6]} 31... Rxe4 {[%clk 0:00:21]} 32. Nxe4
{[%clk 0:00:17.5]} 32... Re8 {[%clk 0:00:20.1]} 33. Ng3 {[%clk 0:00:16.8]} 33...
Nxe3 {[%clk 0:00:14]} 34. Rf2 {[%clk 0:00:15]} 34... Nd1 {[%clk 0:00:08]} 35.
Rd2 {[%clk 0:00:11.8]} 35... Re1+ {[%clk 0:00:06.1]} 36. Kh2 {[%clk 0:00:12.3]}
36... Qe6 {[%clk 0:00:05.1]} 37. Qf3 {[%clk 0:00:06]} 37... Ne3 {[%clk
0:00:02.7]} 38. Re2 {[%clk 0:00:04.1]} 38... Rxe2 {[%clk 0:00:02.5]} 39. Qxe2
{[%clk 0:00:05]} 39... Nd5 {[%clk 0:00:02.7]} 40. Qxe6 {[%clk 0:00:04.7]} 40...
fxe6 {[%clk 0:00:03.6]} 41. c4 {[%clk 0:00:04.1]} 41... bxc4 {[%clk 0:00:03.7]}
42. bxc4 {[%clk 0:00:05]} 42... Ne3 {[%clk 0:00:04.5]} 43. Ne4 {[%clk
0:00:05.3]} 43... Kg8 {[%clk 0:00:03.5]} 44. Nxc5 {[%clk 0:00:05.7]} 44... Kf7
{[%clk 0:00:04.1]} 45. Nxa6 {[%clk 0:00:06.1]} 45... Nxc4 {[%clk 0:00:04.6]} 46.
Nc5 {[%clk 0:00:06.4]} 46... Kxf6 {[%clk 0:00:05]} 47. Kg3 {[%clk 0:00:06.9]}
47... Ke5 {[%clk 0:00:05.4]} 48. Kf3 {[%clk 0:00:07.5]} 48... Kd5 {[%clk
0:00:05.7]} 49. Nd7 {[%clk 0:00:06.9]} 49... e5 {[%clk 0:00:04.1]} 50. Nf8
{[%clk 0:00:07.4]} 50... g5 {[%clk 0:00:04]} 51. Ke2 {[%clk 0:00:07.2]} 51...
Na3 {[%clk 0:00:02.3]} 52. Ng6 {[%clk 0:00:07.4]} 52... e4 {[%clk 0:00:01.5]}
53. Ne7+ {[%clk 0:00:07]} 53... Ke6 {[%clk 0:00:01.8]} 54. Nc6 {[%clk 0:00:07]}
54... Kf5 {[%clk 0:00:01.8]} 55. Nd4+ {[%clk 0:00:06.6]} 55... Kf4 {[%clk
0:00:02.1]} 56. Ne6+ {[%clk 0:00:03.8]} 56... Ke5 {[%clk 0:00:01.7]} 57. Kf1
{[%clk 0:00:04.7]} 57... Kxe6 {[%clk 0:00:02]} 58. Ke2 {[%clk 0:00:04.7]} 58...
Kd5 {[%clk 0:00:02.6]} 59. Ke3 {[%clk 0:00:04.9]} 59... Nc4+ {[%clk 0:00:03.2]}
60. Ke2 {[%clk 0:00:05]} 60... Kd4 {[%clk 0:00:04]} 61. a4 {[%clk 0:00:05.1]}
61... Na5 {[%clk 0:00:04.5]} 62. g3 {[%clk 0:00:04.9]} 62... e3 {[%clk
0:00:04.9]} 63. h4 {[%clk 0:00:05.3]} 63... Ke4 {[%clk 0:00:05.3]} 64. hxg5
{[%clk 0:00:05.3]} 64... hxg5 {[%clk 0:00:06.2]} 65. g4 {[%clk 0:00:05.2]} 65...
Nb3 {[%clk 0:00:06.9]} 0-1

[Event "Early-Titled-Tuesday-Blitz-February-13-2024"]
[Site "Chess.com"]
[Date "2024.02.13"]
[Round "2"]
[White "TimGrutter03"]
[Black "stollenmonster"]
[Result "1/2-1/2"]
[WhiteElo "2633"]
[BlackElo "2912"]
[TimeControl "180+1"]
[EndTime "8:21:22 PST"]
[Termination "Game drawn - insufficient material"]

1. c4 {[%clk 0:03:00.9]} 1... Nf6 {[%clk 0:02:59.6]} 2. Nf3 {[%clk 0:03:00.8]}
2... e6 {[%clk 0:03:00]} 3. e3 {[%clk 0:02:59.9]} 3... d5 {[%clk 0:03:00.9]} 4.
b3 {[%clk 0:03:00.3]} 4... Be7 {[%clk 0:03:01.6]} 5. Bb2 {[%clk 0:03:00.8]} 5...
O-O {[%clk 0:03:02.2]} 6. Qc2 {[%clk 0:03:01.2]} 6... Ne4 {[%clk 0:02:53.6]} 7.
Nc3 {[%clk 0:02:55.9]} 7... f5 {[%clk 0:02:52.5]} 8. Be2 {[%clk 0:02:47.7]} 8...
c6 {[%clk 0:02:52.2]} 9. O-O {[%clk 0:02:45.8]} 9... Bd7 {[%clk 0:02:52.6]} 10.
Ne5 {[%clk 0:02:40.5]} 10... Be8 {[%clk 0:02:52.3]} 11. d3 {[%clk 0:02:40.4]}
11... Nxc3 {[%clk 0:02:52.3]} 12. Bxc3 {[%clk 0:02:40]} 12... Nd7 {[%clk
0:02:52]} 13. Nxd7 {[%clk 0:02:38]} 13... Qxd7 {[%clk 0:02:52.9]} 14. Qb2 {[%clk
0:02:37]} 14... Bf6 {[%clk 0:02:52.7]} 15. Bxf6 {[%clk 0:02:36.1]} 15... Rxf6
{[%clk 0:02:53.6]} 16. Qe5 {[%clk 0:02:31.9]} 16... Bg6 {[%clk 0:02:43.7]} 17.
f4 {[%clk 0:02:24.4]} 17... Rff8 {[%clk 0:02:40.8]} 18. Rac1 {[%clk 0:02:19.1]}
18... Rae8 {[%clk 0:02:40.9]} 19. Rfd1 {[%clk 0:02:13.6]} 19... Qf7 {[%clk
0:02:39]} 20. Bf3 {[%clk 0:02:08.5]} 20... Bh5 {[%clk 0:02:39.1]} 21. Rf1 {[%clk
0:02:03.5]} 21... h6 {[%clk 0:02:37.2]} 22. d4 {[%clk 0:01:51.4]} 22... Kh7
{[%clk 0:02:34.3]} 23. Bxh5 {[%clk 0:01:47.7]} 23... Qxh5 {[%clk 0:02:35.2]} 24.
Rf3 {[%clk 0:01:47.9]} 24... Rg8 {[%clk 0:02:31.5]} 25. Rcf1 {[%clk 0:01:41.1]}
25... g5 {[%clk 0:02:29]} 26. fxg5 {[%clk 0:01:39.8]} 26... Rxg5 {[%clk
0:02:29.9]} 27. Rg3 {[%clk 0:01:37.2]} 27... Rxg3 {[%clk 0:02:28.1]} 28. Qxg3
{[%clk 0:01:31.5]} 28... Re7 {[%clk 0:02:26.5]} 29. Rf3 {[%clk 0:01:23.5]} 29...
Qg5 {[%clk 0:02:20.5]} 30. Kf2 {[%clk 0:01:21.6]} 30... Rg7 {[%clk 0:02:17.2]}
31. Qxg5 {[%clk 0:01:17.1]} 31... hxg5 {[%clk 0:02:18.1]} 32. Rh3+ {[%clk
0:01:17.3]} 32... Kg6 {[%clk 0:02:17.6]} 33. Rh8 {[%clk 0:01:17.1]} 33... Rh7
{[%clk 0:02:13.1]} 34. Rg8+ {[%clk 0:01:10.9]} 34... Kf7 {[%clk 0:02:05.7]} 35.
Rb8 {[%clk 0:01:06.8]} 35... Kf6 {[%clk 0:02:00.3]} 36. h3 {[%clk 0:01:05.9]}
36... Rf7 {[%clk 0:01:45.6]} 37. Rh8 {[%clk 0:01:00.3]} 37... dxc4 {[%clk
0:01:11.1]} 38. bxc4 {[%clk 0:00:59]} 38... e5 {[%clk 0:01:12]} 39. Rh6+ {[%clk
0:00:44.5]} 39... Kg7 {[%clk 0:01:10.7]} 40. Rd6 {[%clk 0:00:45.1]} 40... e4
{[%clk 0:00:47.2]} 41. g3 {[%clk 0:00:44.9]} 41... Rc7 {[%clk 0:00:23.9]} 42. h4
{[%clk 0:00:41]} 42... g4 {[%clk 0:00:23.1]} 43. h5 {[%clk 0:00:33.9]} 43... a5
{[%clk 0:00:22.3]} 44. a4 {[%clk 0:00:32.6]} 44... b5 {[%clk 0:00:22.2]} 45.
axb5 {[%clk 0:00:21.5]} 45... cxb5 {[%clk 0:00:23.1]} 46. cxb5 {[%clk
0:00:22.4]} 46... Rc2+ {[%clk 0:00:23.1]} 47. Kf1 {[%clk 0:00:22.1]} 47... Rc3
{[%clk 0:00:20.1]} 48. b6 {[%clk 0:00:14.8]} 48... Rxe3 {[%clk 0:00:19.8]} 49.
Rd5 {[%clk 0:00:14]} 49... Rb3 {[%clk 0:00:17.7]} 50. Rxa5 {[%clk 0:00:11.7]}
50... Kf6 {[%clk 0:00:14.4]} 51. h6 {[%clk 0:00:05]} 51... Rxb6 {[%clk
0:00:14.3]} 52. h7 {[%clk 0:00:05]} 52... Rb8 {[%clk 0:00:14.5]} 53. Ra7 {[%clk
0:00:05.5]} 53... Rd8 {[%clk 0:00:09]} 54. Kf2 {[%clk 0:00:05.4]} 54... Kg6
{[%clk 0:00:08.2]} 55. Ke3 {[%clk 0:00:05.1]} 55... Rh8 {[%clk 0:00:08.8]} 56.
Kf4 {[%clk 0:00:03.8]} 56... Rxh7 {[%clk 0:00:08.6]} 57. Ra6+ {[%clk 0:00:04.5]}
57... Kh5 {[%clk 0:00:08.3]} 58. Kxf5 {[%clk 0:00:04.7]} 58... e3 {[%clk
0:00:08.8]} 59. Re6 {[%clk 0:00:04.2]} 59... Rf7+ {[%clk 0:00:08.6]} 60. Ke4
{[%clk 0:00:04.9]} 60... Rf3 {[%clk 0:00:07.6]} 61. Kd3 {[%clk 0:00:04.4]} 61...
Rxg3 {[%clk 0:00:07.5]} 62. d5 {[%clk 0:00:04.7]} 62... Rg1 {[%clk 0:00:07.7]}
63. Rxe3 {[%clk 0:00:03.2]} 63... Kh4 {[%clk 0:00:06.5]} 64. Ke4 {[%clk
0:00:02.3]} 64... Rd1 {[%clk 0:00:06.4]} 65. Rd3 {[%clk 0:00:01.9]} 65... Re1+
{[%clk 0:00:03.6]} 66. Kd4 {[%clk 0:00:01.6]} 66... g3 {[%clk 0:00:03]} 67. Rd2
{[%clk 0:00:02]} 67... Kh3 {[%clk 0:00:02.9]} 68. d6 {[%clk 0:00:02.6]} 68... g2
{[%clk 0:00:02.2]} 69. Rxg2 {[%clk 0:00:03.2]} 69... Kxg2 {[%clk 0:00:02.9]} 70.
Kc5 {[%clk 0:00:03.7]} 70... Rd1 {[%clk 0:00:03.3]} 71. Kc6 {[%clk 0:00:04]}
71... Kf3 {[%clk 0:00:03.8]} 72. d7 {[%clk 0:00:04.7]} 72... Ke4 {[%clk
0:00:04.2]} 73. Kc7 {[%clk 0:00:05.2]} 73... Rxd7+ {[%clk 0:00:04.8]} 74. Kxd7
{[%clk 0:00:05.6]} 1/2-1/2

[Event "Early-Titled-Tuesday-Blitz-February-13-2024"]
[Site "Chess.com"]
[Date "2024.02.13"]
[Round "2"]
[White "ChristopherYoo"]
[Black "bazar-wokzal"]
[Result "1/2-1/2"]
[WhiteElo "2978"]
[BlackElo "2657"]
[TimeControl "180+1"]
[EndTime "8:21:24 PST"]
[Termination "Game drawn by repetition"]

1. d4 {[%clk 0:03:00.9]} 1... Nf6 {[%clk 0:02:59.5]} 2. Nf3 {[%clk 0:03:00.5]}
2... e6 {[%clk 0:02:59.6]} 3. c4 {[%clk 0:03:00.7]} 3... Nc6 {[%clk 0:02:59.5]}
4. g3 {[%clk 0:03:00.4]} 4... Bb4+ {[%clk 0:02:59.1]} 5. Bd2 {[%clk 0:03:00.1]}
5... Qe7 {[%clk 0:02:57.1]} 6. Bg2 {[%clk 0:03:00.2]} 6... Bxd2+ {[%clk
0:02:57]} 7. Nbxd2 {[%clk 0:03:01.1]} 7... d6 {[%clk 0:02:55.9]} 8. e4 {[%clk
0:02:53.7]} 8... e5 {[%clk 0:02:55.8]} 9. d5 {[%clk 0:02:54.1]} 9... Nb8 {[%clk
0:02:55.6]} 10. O-O {[%clk 0:02:45.1]} 10... O-O {[%clk 0:02:55.3]} 11. b4
{[%clk 0:02:42.5]} 11... c6 {[%clk 0:02:52.7]} 12. Ne1 {[%clk 0:02:31.3]} 12...
cxd5 {[%clk 0:02:52.1]} 13. exd5 {[%clk 0:02:15.4]} 13... a5 {[%clk 0:02:51.3]}
14. a3 {[%clk 0:02:14.1]} 14... axb4 {[%clk 0:02:47.7]} 15. axb4 {[%clk
0:02:15]} 15... Bg4 {[%clk 0:02:45.5]} 16. f3 {[%clk 0:02:02]} 16... Rxa1 {[%clk
0:02:45.4]} 17. Qxa1 {[%clk 0:02:02.9]} 17... Bf5 {[%clk 0:02:44.7]} 18. Qa3
{[%clk 0:01:41.2]} 18... Nbd7 {[%clk 0:02:41]} 19. Nd3 {[%clk 0:01:33.3]} 19...
Rc8 {[%clk 0:02:35.6]} 20. b5 {[%clk 0:00:41.4]} 20... Bxd3 {[%clk 0:02:27.3]}
21. Qxd3 {[%clk 0:00:42.3]} 21... Nc5 {[%clk 0:02:27.2]} 22. Qa3 {[%clk
0:00:41.4]} 22... Qc7 {[%clk 0:02:19.6]} 23. g4 {[%clk 0:00:40]} 23... h6 {[%clk
0:02:14.2]} 24. Kh1 {[%clk 0:00:38.6]} 24... Nh7 {[%clk 0:02:06.2]} 25. Ra1
{[%clk 0:00:29.6]} 25... Nf8 {[%clk 0:02:05.2]} 26. Qe3 {[%clk 0:00:23.1]} 26...
Ng6 {[%clk 0:02:02.9]} 27. g5 {[%clk 0:00:20.1]} 27... Nf4 {[%clk 0:01:44.2]}
28. gxh6 {[%clk 0:00:19.6]} 28... g6 {[%clk 0:01:44.2]} 29. Rg1 {[%clk
0:00:15.6]} 29... Qe7 {[%clk 0:01:37.4]} 30. Bf1 {[%clk 0:00:14.5]} 30... Qh4
{[%clk 0:01:35.5]} 31. Ne4 {[%clk 0:00:12.2]} 31... Nxe4 {[%clk 0:01:30.5]} 32.
fxe4 {[%clk 0:00:13.1]} 32... Qxh6 {[%clk 0:01:28.8]} 33. h3 {[%clk 0:00:12.6]}
33... Kg7 {[%clk 0:01:28.3]} 34. Kh2 {[%clk 0:00:06.7]} 34... Ra8 {[%clk
0:01:27]} 35. c5 {[%clk 0:00:04.5]} 35... Ra2+ {[%clk 0:01:24.9]} 36. Kh1 {[%clk
0:00:02.3]} 36... dxc5 {[%clk 0:01:21.8]} 37. d6 {[%clk 0:00:02.8]} 37... Ra4
{[%clk 0:00:59.1]} 38. Qxc5 {[%clk 0:00:01.8]} 38... Qh5 {[%clk 0:00:34.1]} 39.
d7 {[%clk 0:00:01.7]} 39... Qf3+ {[%clk 0:00:33.7]} 40. Bg2 {[%clk 0:00:01.7]}
40... Nxg2 {[%clk 0:00:33.6]} 41. Qxe5+ {[%clk 0:00:02.2]} 41... Kh7 {[%clk
0:00:31.6]} 42. Rxg2 {[%clk 0:00:02]} 42... Ra2 {[%clk 0:00:27.3]} 43. Qg3
{[%clk 0:00:01.7]} 43... Qxg3 {[%clk 0:00:22.6]} 44. Rxg3 {[%clk 0:00:01.8]}
44... Rd2 {[%clk 0:00:23.2]} 45. e5 {[%clk 0:00:01.4]} 45... Rxd7 {[%clk
0:00:23.3]} 46. b6 {[%clk 0:00:01.8]} 46... Re7 {[%clk 0:00:20.3]} 47. Rc3
{[%clk 0:00:02.2]} 47... Kh6 {[%clk 0:00:18.4]} 48. Rc7 {[%clk 0:00:02.4]} 48...
Rxe5 {[%clk 0:00:17.2]} 49. Rxf7 {[%clk 0:00:03.1]} 49... Rb5 {[%clk 0:00:15.1]}
50. Rxb7 {[%clk 0:00:03]} 50... Rb2 {[%clk 0:00:15.1]} 51. Kg1 {[%clk
0:00:02.9]} 51... g5 {[%clk 0:00:10.5]} 52. Kf1 {[%clk 0:00:02.8]} 52... Kg6
{[%clk 0:00:11]} 53. Ke1 {[%clk 0:00:03.2]} 53... Rb3 {[%clk 0:00:10.9]} 54. Rb8
{[%clk 0:00:02.4]} 54... Kg7 {[%clk 0:00:10]} 55. b7 {[%clk 0:00:02.8]} 55...
Rb2 {[%clk 0:00:09.3]} 56. Kd1 {[%clk 0:00:03]} 56... Kh7 {[%clk 0:00:08.8]} 57.
Kc1 {[%clk 0:00:03.7]} 57... Rb6 {[%clk 0:00:07.8]} 58. Kc2 {[%clk 0:00:04]}
58... Kg7 {[%clk 0:00:07.8]} 59. Kd3 {[%clk 0:00:03.4]} 59... Rb4 {[%clk
0:00:06.9]} 60. Kc3 {[%clk 0:00:03.9]} 60... Rb1 {[%clk 0:00:06.7]} 61. Kd4
{[%clk 0:00:04.1]} 61... Rb5 {[%clk 0:00:06.8]} 62. Kc4 {[%clk 0:00:04.3]} 62...
Rb1 {[%clk 0:00:07]} 63. Kd5 {[%clk 0:00:04.5]} 63... Rb5+ {[%clk 0:00:06.9]}
64. Ke6 {[%clk 0:00:05.1]} 64... Rb1 {[%clk 0:00:05.7]} 65. Kf5 {[%clk
0:00:04.8]} 65... Rb5+ {[%clk 0:00:05.6]} 66. Kg4 {[%clk 0:00:04.3]} 66... Kh7
{[%clk 0:00:06.1]} 67. Kf3 {[%clk 0:00:03.5]} 67... Kg7 {[%clk 0:00:06.2]} 68.
Ke3 {[%clk 0:00:03.8]} 68... Rb1 {[%clk 0:00:06.3]} 69. Ke4 {[%clk 0:00:03.9]}
69... Kh7 {[%clk 0:00:05.2]} 70. Kd5 {[%clk 0:00:04.4]} 70... Kg7 {[%clk
0:00:04.6]} 71. Kc6 {[%clk 0:00:03.8]} 71... Rc1+ {[%clk 0:00:04.9]} 72. Kd6
{[%clk 0:00:03.8]} 72... Rd1+ {[%clk 0:00:05.4]} 73. Ke6 {[%clk 0:00:02.3]}
73... Rb1 {[%clk 0:00:05.7]} 74. Kf5 {[%clk 0:00:01.8]} 74... Rb5+ {[%clk
0:00:05.6]} 75. Kg4 {[%clk 0:00:02.6]} 75... Kh7 {[%clk 0:00:06.1]} 76. Kh5
{[%clk 0:00:02.8]} 76... Kg7 {[%clk 0:00:06.5]} 77. Kg4 {[%clk 0:00:03.1]}
1/2-1/2

[Event "Early-Titled-Tuesday-Blitz-February-13-2024"]
[Site "Chess.com"]
[Date "2024.02.13"]
[Round "2"]
[White "CarlosjPineror"]
[Black "NM_Antelacus"]
[Result "1-0"]
[WhiteElo "2707"]
[BlackElo "2249"]
[TimeControl "180+1"]
[EndTime "8:21:52 PST"]
[Termination "CarlosjPineror won on time"]

1. e4 {[%clk 0:03:00.9]} 1... c5 {[%clk 0:02:59.2]} 2. Nf3 {[%clk 0:03:00.2]}
2... Nc6 {[%clk 0:02:59.2]} 3. g3 {[%clk 0:02:59.8]} 3... g6 {[%clk 0:02:56.2]}
4. Bg2 {[%clk 0:02:59.5]} 4... Bg7 {[%clk 0:02:56.1]} 5. O-O {[%clk 0:02:59.4]}
5... d6 {[%clk 0:02:54.2]} 6. h3 {[%clk 0:02:56.3]} 6... e5 {[%clk 0:02:51.7]}
7. d3 {[%clk 0:02:55]} 7... Nge7 {[%clk 0:02:51.4]} 8. Nc3 {[%clk 0:02:55.5]}
8... O-O {[%clk 0:02:50.7]} 9. Bg5 {[%clk 0:02:50.1]} 9... Rb8 {[%clk
0:02:43.6]} 10. Nd2 {[%clk 0:02:49.7]} 10... b5 {[%clk 0:02:41.4]} 11. a4 {[%clk
0:02:48.6]} 11... b4 {[%clk 0:02:41]} 12. Ne2 {[%clk 0:02:48.6]} 12... Nd4
{[%clk 0:02:39.2]} 13. Nc4 {[%clk 0:02:39.8]} 13... f6 {[%clk 0:02:37.4]} 14.
Bd2 {[%clk 0:02:38.3]} 14... Be6 {[%clk 0:02:35.8]} 15. c3 {[%clk 0:02:37.3]}
15... Nxe2+ {[%clk 0:02:34.5]} 16. Qxe2 {[%clk 0:02:37.5]} 16... d5 {[%clk
0:02:24.8]} 17. exd5 {[%clk 0:02:27]} 17... Bxd5 {[%clk 0:02:24.5]} 18. Be4
{[%clk 0:02:21.1]} 18... Qd7 {[%clk 0:02:03.4]} 19. Kh2 {[%clk 0:02:18.2]} 19...
Rfd8 {[%clk 0:02:01.8]} 20. Rfd1 {[%clk 0:02:14.6]} 20... f5 {[%clk 0:01:49.6]}
21. Bxd5+ {[%clk 0:02:12.5]} 21... Qxd5 {[%clk 0:01:49.1]} 22. Bg5 {[%clk
0:02:12.9]} 22... Rd7 {[%clk 0:01:47.2]} 23. Ne3 {[%clk 0:02:08.7]} 23... Qc6
{[%clk 0:01:42.7]} 24. Bxe7 {[%clk 0:02:08.1]} 24... Rxe7 {[%clk 0:01:41.6]} 25.
c4 {[%clk 0:02:08.3]} 25... e4 {[%clk 0:01:25.4]} 26. Nd5 {[%clk 0:02:04.5]}
26... Ree8 {[%clk 0:01:22.7]} 27. dxe4 {[%clk 0:01:55.9]} 27... Rxe4 {[%clk
0:01:20.4]} 28. Qc2 {[%clk 0:01:52.2]} 28... Rbe8 {[%clk 0:01:18.3]} 29. Rd2
{[%clk 0:01:49.2]} 29... h6 {[%clk 0:01:08.8]} 30. Rad1 {[%clk 0:01:46]} 30...
Kh7 {[%clk 0:01:05.8]} 31. b3 {[%clk 0:01:45.4]} 31... Bd4 {[%clk 0:00:54.7]}
32. Qd3 {[%clk 0:01:36.7]} 32... Qd6 {[%clk 0:00:52]} 33. Qf3 {[%clk 0:01:33.7]}
33... Qe5 {[%clk 0:00:49.9]} 34. Kg2 {[%clk 0:01:26.8]} 34... Kg7 {[%clk
0:00:49.8]} 35. Nf4 {[%clk 0:01:16.8]} 35... g5 {[%clk 0:00:38.8]} 36. Nd5
{[%clk 0:01:15.1]} 36... Kg6 {[%clk 0:00:37.5]} 37. Qd3 {[%clk 0:01:13.4]} 37...
Re2 {[%clk 0:00:30.9]} 38. g4 {[%clk 0:00:57.9]} 38... Rxd2 {[%clk 0:00:26.6]}
39. Rxd2 {[%clk 0:00:57.6]} 39... Qe4+ {[%clk 0:00:21.3]} 40. Qxe4 {[%clk
0:00:57.3]} 40... Rxe4 {[%clk 0:00:17.9]} 41. gxf5+ {[%clk 0:00:54.6]} 41...
Kxf5 {[%clk 0:00:18.1]} 42. Kf3 {[%clk 0:00:55.3]} 42... Re1 {[%clk 0:00:17.6]}
43. Re2 {[%clk 0:00:52.8]} 43... Rb1 {[%clk 0:00:16.3]} 44. Re8 {[%clk
0:00:50.2]} 44... Rxb3+ {[%clk 0:00:15.4]} 45. Kg2 {[%clk 0:00:50.3]} 45... Rb2
{[%clk 0:00:15.2]} 46. Rf8+ {[%clk 0:00:50.6]} 46... Kg6 {[%clk 0:00:15.3]} 47.
Rf3 {[%clk 0:00:47.2]} 47... b3 {[%clk 0:00:15.1]} 48. Ne7+ {[%clk 0:00:42.6]}
48... Kg7 {[%clk 0:00:15.4]} 49. Nf5+ {[%clk 0:00:42.9]} 49... Kg6 {[%clk
0:00:15.6]} 50. Nxd4 {[%clk 0:00:42.9]} 50... cxd4 {[%clk 0:00:15.9]} 51. Rd3
{[%clk 0:00:43.7]} 51... Ra2 {[%clk 0:00:14.2]} 52. Rxd4 {[%clk 0:00:42.1]}
52... Rxa4 {[%clk 0:00:14.2]} 53. Rd6+ {[%clk 0:00:42.3]} 53... Kf5 {[%clk
0:00:13.9]} 54. c5 {[%clk 0:00:40.6]} 54... Rc4 {[%clk 0:00:13.1]} 55. Rd3
{[%clk 0:00:39]} 55... b2 {[%clk 0:00:12.7]} 56. Rb3 {[%clk 0:00:39.2]} 56...
Rxc5 {[%clk 0:00:12.8]} 57. Rxb2 {[%clk 0:00:39.8]} 57... Ra5 {[%clk 0:00:12.3]}
58. Rb7 {[%clk 0:00:39.3]} 58... h5 {[%clk 0:00:12.2]} 59. Rf7+ {[%clk
0:00:39.2]} 59... Kg6 {[%clk 0:00:12.3]} 60. Rb7 {[%clk 0:00:40.1]} 60... Ra4
{[%clk 0:00:12.4]} 61. Rc7 {[%clk 0:00:39]} 61... Ra3 {[%clk 0:00:12]} 62. Rc6+
{[%clk 0:00:39.4]} 62... Kf5 {[%clk 0:00:11.6]} 63. Rc5+ {[%clk 0:00:40.2]}
63... Kf6 {[%clk 0:00:11.6]} 64. Rc6+ {[%clk 0:00:40.7]} 64... Kf5 {[%clk
0:00:12]} 65. Rh6 {[%clk 0:00:41.2]} 65... h4 {[%clk 0:00:11.8]} 66. Rc6 {[%clk
0:00:41.9]} 66... a5 {[%clk 0:00:11.7]} 67. Rc5+ {[%clk 0:00:42.2]} 67... Kf6
{[%clk 0:00:11.8]} 68. Rc6+ {[%clk 0:00:42.8]} 68... Kf5 {[%clk 0:00:12.2]} 69.
Ra6 {[%clk 0:00:43.7]} 69... Kf4 {[%clk 0:00:12.3]} 70. Rf6+ {[%clk 0:00:42.2]}
70... Ke5 {[%clk 0:00:12.2]} 71. Rf8 {[%clk 0:00:42.2]} 71... Ke6 {[%clk
0:00:11.9]} 72. Ra8 {[%clk 0:00:40.6]} 72... a4 {[%clk 0:00:11.7]} 73. Ra5
{[%clk 0:00:40]} 73... Kf6 {[%clk 0:00:11.8]} 74. Kh2 {[%clk 0:00:40.5]} 74...
Kg6 {[%clk 0:00:12]} 75. Kg2 {[%clk 0:00:40.8]} 75... Kh5 {[%clk 0:00:12.2]} 76.
Kh2 {[%clk 0:00:40.8]} 76... Kg6 {[%clk 0:00:12.5]} 77. Kg2 {[%clk 0:00:40.8]}
77... Kh5 {[%clk 0:00:12.9]} 78. Ra6 {[%clk 0:00:39]} 78... Ra1 {[%clk
0:00:11.8]} 79. Kh2 {[%clk 0:00:39.3]} 79... a3 {[%clk 0:00:12]} 80. Kg2 {[%clk
0:00:39.9]} 80... a2 {[%clk 0:00:08.7]} 81. Kh2 {[%clk 0:00:40.1]} 81... g4
{[%clk 0:00:08.1]} 82. Ra5+ {[%clk 0:00:39.7]} 82... Kg6 {[%clk 0:00:08]} 83.
hxg4 {[%clk 0:00:40.3]} 83... Kh6 {[%clk 0:00:08.1]} 84. Kg2 {[%clk 0:00:32.8]}
84... Kg6 {[%clk 0:00:08.1]} 85. f4 {[%clk 0:00:30.2]} 85... Kf6 {[%clk
0:00:08.2]} 86. Ra6+ {[%clk 0:00:29.9]} 86... Kf7 {[%clk 0:00:08.3]} 87. f5
{[%clk 0:00:29.8]} 87... Ke7 {[%clk 0:00:06.9]} 88. g5 {[%clk 0:00:27.5]} 88...
h3+ {[%clk 0:00:06.9]} 89. Kh2 {[%clk 0:00:26.7]} 89... Rf1 {[%clk 0:00:07.4]}
90. Ra7+ {[%clk 0:00:23.6]} 90... Kd6 {[%clk 0:00:06.9]} 91. Ra6+ {[%clk
0:00:19]} 91... Ke5 {[%clk 0:00:06.3]} 92. Re6+ {[%clk 0:00:16.1]} 92... Kxf5
{[%clk 0:00:06.1]} 93. Rf6+ {[%clk 0:00:16.5]} 93... Kxg5 {[%clk 0:00:06.5]} 94.
Rxf1 {[%clk 0:00:17.3]} 1-0